[Event "Titled Tuesday Blitz April 12 Late 2022"]
[White "Petrovic, Aleksa"]
[Black "Kosteniuk, Alexandra"]
[WhiteFideId "967629"]
[BlackFideId "4128125"]
[WhiteElo "2467"]
[BlackElo "2655"]
[Result "0-1"]
[Round "03"]
[TimeControl "180+1"]
[Date "2022.04.13"]
[WhiteClock "0:00:19"]
[BlackClock "0:00:57"]

1. d4 {[%clk 0:03:00]}  Nf6 {[%clk 0:02:59]} 2. c4 {[%clk 0:03:00]}  e6 {[%clk 0:02:59]} 3. Nf3 {[%clk 0:03:00]}  c5 {[%clk 0:02:59]} 4. d5 {[%clk 0:02:58]}  b5 {[%clk 0:02:59]} 5. Bg5 {[%clk 0:02:55]}  h6 {[%clk 0:02:56]} 6. Bxf6 {[%clk 0:02:49]}  Qxf6 {[%clk 0:02:55]} 7. Nc3 {[%clk 0:02:49]}  b4 {[%clk 0:02:49]} 8. Nb5 {[%clk 0:02:34]}  Na6 {[%clk 0:02:48]} 9. e4 {[%clk 0:02:15]}  e5 {[%clk 0:02:45]} 10. a3 {[%clk 0:02:07]}  Bd6 {[%clk 0:02:31]} 11. axb4 {[%clk 0:01:53]}  Nxb4 {[%clk 0:02:31]} 12. Rxa7 {[%clk 0:01:44]}  Rxa7 {[%clk 0:02:30]} 13. Nxa7 {[%clk 0:01:45]}  Ba6 {[%clk 0:02:26]} 14. Nb5 {[%clk 0:01:38]}  Bxb5 {[%clk 0:02:22]} 15. cxb5 {[%clk 0:01:38]}  O-O {[%clk 0:02:22]} 16. Bc4 {[%clk 0:01:32]}  Qf4 {[%clk 0:02:21]} 17. Nd2 {[%clk 0:01:31]}  f5 {[%clk 0:02:20]} 18. g3 {[%clk 0:01:26]}  Qg5 {[%clk 0:02:19]} 19. exf5 {[%clk 0:01:20]}  Qxf5 {[%clk 0:02:19]} 20. O-O {[%clk 0:01:20]}  Kh8 {[%clk 0:02:05]} 21. f3 {[%clk 0:01:14]}  Be7 {[%clk 0:02:01]} 22. Ne4 {[%clk 0:01:09]}  d6 {[%clk 0:02:01]} 23. Qa4 {[%clk 0:01:04]}  Qd7 {[%clk 0:01:49]} 24. Kg2 {[%clk 0:01:00]}  Qb7 {[%clk 0:01:47]} 25. Nc3 {[%clk 0:00:53]}  Ra8 {[%clk 0:01:41]} 26. Qb3 {[%clk 0:00:52]}  Bg5 {[%clk 0:01:29]} 27. Ne4 {[%clk 0:00:50]}  Be7 {[%clk 0:01:29]} 28. f4 {[%clk 0:00:47]}  exf4 {[%clk 0:01:26]} 29. Rxf4 {[%clk 0:00:48]}  Qd7 {[%clk 0:01:15]} 30. Rf7 {[%clk 0:00:38]}  Qe8 {[%clk 0:01:05]} 31. Qf3 {[%clk 0:00:33]}  Nc2 {[%clk 0:01:05]} 32. b6 {[%clk 0:00:25]}  Ne1+ {[%clk 0:01:04]} 33. Kf2 {[%clk 0:00:21]}  Nxf3 {[%clk 0:01:05]} 34. Rxf3 {[%clk 0:00:22]}  Rb8 {[%clk 0:01:02]} 35. Rb3 {[%clk 0:00:22]}  Bd8 {[%clk 0:00:57]} 36. Nxd6 {[%clk 0:00:19]}  Qf8+ {[%clk 0:00:57]} 0-1


[Site "https://www.chess.com"]

[Event "Titled Tuesday Blitz April 12 Late 2022"]
[White "Pinheiro, Iung Alicio de O."]
[Black "Bas Mas, Jose Joaquin"]
[WhiteFideId "2104350"]
[BlackFideId "22219064"]
[WhiteElo "2539"]
[BlackElo "2212"]
[Result "1/2-1/2"]
[Round "03"]
[TimeControl "180+1"]
[Date "2022.04.13"]
[WhiteClock "0:00:14"]
[BlackClock "0:00:06"]

1. c4 {[%clk 0:02:59]}  e6 {[%clk 0:02:59]} 2. g3 {[%clk 0:02:59]}  f5 {[%clk 0:02:59]} 3. Bg2 {[%clk 0:02:59]}  Nf6 {[%clk 0:02:59]} 4. Nf3 {[%clk 0:02:58]}  Be7 {[%clk 0:02:58]} 5. O-O {[%clk 0:02:58]}  O-O {[%clk 0:02:58]} 6. d3 {[%clk 0:02:58]}  c5 {[%clk 0:02:58]} 7. Nc3 {[%clk 0:02:50]}  Nc6 {[%clk 0:02:57]} 8. e4 {[%clk 0:02:49]}  fxe4 {[%clk 0:02:49]} 9. dxe4 {[%clk 0:02:48]}  d6 {[%clk 0:02:50]} 10. e5 {[%clk 0:02:41]}  dxe5 {[%clk 0:02:46]} 11. Ng5 {[%clk 0:02:24]}  Nd4 {[%clk 0:02:31]} 12. Re1 {[%clk 0:02:21]}  Bd6 {[%clk 0:02:28]} 13. Qd3 {[%clk 0:02:17]}  h6 {[%clk 0:02:19]} 14. Nge4 {[%clk 0:02:16]}  Bb8 {[%clk 0:02:11]} 15. Nxf6+ {[%clk 0:02:05]}  Qxf6 {[%clk 0:02:08]} 16. Ne4 {[%clk 0:01:58]}  Qe7 {[%clk 0:02:08]} 17. Nc3 {[%clk 0:01:35]}  a6 {[%clk 0:02:00]} 18. Rb1 {[%clk 0:01:14]}  Ra7 {[%clk 0:01:58]} 19. Qg6 {[%clk 0:01:11]}  Qf7 {[%clk 0:01:51]} 20. Qxf7+ {[%clk 0:01:05]}  Rxf7 {[%clk 0:01:48]} 21. Ne4 {[%clk 0:01:02]}  b6 {[%clk 0:01:45]} 22. Be3 {[%clk 0:01:03]}  Rad7 {[%clk 0:01:39]} 23. Kf1 {[%clk 0:01:01]}  Bb7 {[%clk 0:01:29]} 24. Red1 {[%clk 0:00:57]}  Nc2 {[%clk 0:01:23]} 25. Ke2 {[%clk 0:00:47]}  Nd4+ {[%clk 0:01:16]} 26. Kf1 {[%clk 0:00:46]}  Kf8 {[%clk 0:01:10]} 27. h4 {[%clk 0:00:46]}  a5 {[%clk 0:01:01]} 28. b3 {[%clk 0:00:45]}  Ke8 {[%clk 0:00:57]} 29. Nc3 {[%clk 0:00:44]}  Bxg2+ {[%clk 0:00:51]} 30. Kxg2 {[%clk 0:00:45]}  Nf5 {[%clk 0:00:44]} 31. Ne4 {[%clk 0:00:44]}  Rxd1 {[%clk 0:00:41]} 32. Rxd1 {[%clk 0:00:44]}  Rd7 {[%clk 0:00:40]} 33. Rxd7 {[%clk 0:00:42]}  Kxd7 {[%clk 0:00:41]} 34. h5 {[%clk 0:00:42]}  Bd6 {[%clk 0:00:40]} 35. g4 {[%clk 0:00:42]}  Nd4 {[%clk 0:00:36]} 36. f3 {[%clk 0:00:41]}  Be7 {[%clk 0:00:36]} 37. Kf2 {[%clk 0:00:41]}  Nc2 {[%clk 0:00:35]} 38. Nc3 {[%clk 0:00:41]}  Bh4+ {[%clk 0:00:28]} 39. Ke2 {[%clk 0:00:41]}  Kc6 {[%clk 0:00:28]} 40. Kd3 {[%clk 0:00:39]}  Nb4+ {[%clk 0:00:26]} 41. Ke2 {[%clk 0:00:37]}  Bf6 {[%clk 0:00:20]} 42. Bd2 {[%clk 0:00:34]}  Be7 {[%clk 0:00:17]} 43. a3 {[%clk 0:00:31]}  Nc2 {[%clk 0:00:16]} 44. Nb5 {[%clk 0:00:29]}  Nd4+ {[%clk 0:00:15]} 45. Nxd4+ {[%clk 0:00:29]}  exd4 {[%clk 0:00:15]} 46. Kd3 {[%clk 0:00:30]}  Kd6 {[%clk 0:00:13]} 47. Ke4 {[%clk 0:00:28]}  Bf6 {[%clk 0:00:13]} 48. f4 {[%clk 0:00:28]}  Bh4 {[%clk 0:00:13]} 49. a4 {[%clk 0:00:27]}  Bg3 {[%clk 0:00:12]} 50. g5 {[%clk 0:00:27]}  Bh4 {[%clk 0:00:11]} 51. gxh6 {[%clk 0:00:26]}  gxh6 {[%clk 0:00:11]} 52. f5 {[%clk 0:00:27]}  exf5+ {[%clk 0:00:09]} 53. Kxf5 {[%clk 0:00:28]}  Bf2 {[%clk 0:00:05]} 54. Bxh6 {[%clk 0:00:24]}  Be3 {[%clk 0:00:05]} 55. Bg7 {[%clk 0:00:20]}  d3 {[%clk 0:00:05]} 56. h6 {[%clk 0:00:20]}  d2 {[%clk 0:00:05]} 57. h7 {[%clk 0:00:19]}  d1=Q {[%clk 0:00:05]} 58. h8=Q {[%clk 0:00:20]}  Qf3+ {[%clk 0:00:05]} 59. Kg6 {[%clk 0:00:20]}  Qg4+ {[%clk 0:00:05]} 60. Kf7 {[%clk 0:00:21]}  Qf5+ {[%clk 0:00:05]} 61. Bf6 {[%clk 0:00:21]}  Qd7+ {[%clk 0:00:05]} 62. Kg6 {[%clk 0:00:21]}  Qg4+ {[%clk 0:00:04]} 63. Kf7 {[%clk 0:00:21]}  Qd7+ {[%clk 0:00:04]} 64. Kg8 {[%clk 0:00:18]}  Qe8+ {[%clk 0:00:03]} 65. Kh7 {[%clk 0:00:19]}  Qxh8+ {[%clk 0:00:04]} 66. Kxh8 {[%clk 0:00:18]}  Bd2 {[%clk 0:00:04]} 67. Kg8 {[%clk 0:00:18]}  Bb4 {[%clk 0:00:02]} 68. Bd8 {[%clk 0:00:18]}  Ke6 {[%clk 0:00:02]} 69. Bxb6 {[%clk 0:00:16]}  Ke5 {[%clk 0:00:03]} 70. Kf7 {[%clk 0:00:17]}  Kd4 {[%clk 0:00:03]} 71. Ke6 {[%clk 0:00:17]}  Kc3 {[%clk 0:00:04]} 72. Kd5 {[%clk 0:00:18]}  Kxb3 {[%clk 0:00:04]} 73. Bxc5 {[%clk 0:00:18]}  Kxa4 {[%clk 0:00:05]} 74. Bd4 {[%clk 0:00:14]}  Kb3 {[%clk 0:00:04]} 75. c5 {[%clk 0:00:13]}  Bxc5 {[%clk 0:00:04]} 76. Bxc5 {[%clk 0:00:14]}  a4 {[%clk 0:00:05]} 77. Kc6 {[%clk 0:00:14]}  a3 {[%clk 0:00:06]} 78. Bxa3 {[%clk 0:00:14]} 1/2-1/2


[Site "https://www.chess.com"]

[Event "Titled Tuesday Blitz April 12 Late 2022"]
[White "Pranav, V"]
[Black "Karas, Marek"]
[WhiteFideId "25060783"]
[BlackFideId "14928558"]
[WhiteElo "2349"]
[BlackElo "2271"]
[Result "1-0"]
[Round "03"]
[TimeControl "180+1"]
[Date "2022.04.12"]
[WhiteClock "0:00:44"]
[BlackClock "0:00:01"]

1. Nf3 {[%clk 0:03:00]}  Nf6 {[%clk 0:02:56]} 2. g3 {[%clk 0:03:00]}  d5 {[%clk 0:02:55]} 3. Bg2 {[%clk 0:03:01]}  c6 {[%clk 0:02:54]} 4. O-O {[%clk 0:03:02]}  Bg4 {[%clk 0:02:52]} 5. d3 {[%clk 0:03:03]}  e6 {[%clk 0:02:50]} 6. Nbd2 {[%clk 0:03:02]}  Be7 {[%clk 0:02:50]} 7. h3 {[%clk 0:03:02]}  Bh5 {[%clk 0:02:46]} 8. e4 {[%clk 0:03:01]}  dxe4 {[%clk 0:02:41]} 9. dxe4 {[%clk 0:03:00]}  O-O {[%clk 0:02:39]} 10. Qe2 {[%clk 0:02:59]}  Bxf3 {[%clk 0:02:24]} 11. Nxf3 {[%clk 0:02:58]}  Nbd7 {[%clk 0:02:24]} 12. Rd1 {[%clk 0:02:48]}  Qc7 {[%clk 0:02:17]} 13. Bf4 {[%clk 0:02:37]}  e5 {[%clk 0:02:16]} 14. Bd2 {[%clk 0:02:33]}  Rfd8 {[%clk 0:02:12]} 15. Nh4 {[%clk 0:02:32]}  Nc5 {[%clk 0:02:03]} 16. Nf5 {[%clk 0:02:31]}  Ne6 {[%clk 0:02:00]} 17. Be3 {[%clk 0:02:30]}  Bc5 {[%clk 0:01:51]} 18. c3 {[%clk 0:02:27]}  Bxe3 {[%clk 0:01:49]} 19. Qxe3 {[%clk 0:02:28]}  b6 {[%clk 0:01:39]} 20. Bf1 {[%clk 0:02:27]}  Rxd1 {[%clk 0:01:36]} 21. Rxd1 {[%clk 0:02:26]}  Rd8 {[%clk 0:01:36]} 22. Bd3 {[%clk 0:02:20]}  Rd7 {[%clk 0:01:21]} 23. Bc2 {[%clk 0:02:14]}  g6 {[%clk 0:01:12]} 24. Nh4 {[%clk 0:02:06]}  Rxd1+ {[%clk 0:01:09]} 25. Bxd1 {[%clk 0:02:07]}  Qd6 {[%clk 0:01:07]} 26. Bc2 {[%clk 0:02:06]}  Kg7 {[%clk 0:01:03]} 27. Nf3 {[%clk 0:02:04]}  h6 {[%clk 0:00:59]} 28. Kg2 {[%clk 0:02:04]}  Nd7 {[%clk 0:00:56]} 29. a4 {[%clk 0:02:02]}  a5 {[%clk 0:00:54]} 30. Nd2 {[%clk 0:01:59]}  b5 {[%clk 0:00:48]} 31. h4 {[%clk 0:01:47]}  Ndc5 {[%clk 0:00:45]} 32. axb5 {[%clk 0:01:46]}  cxb5 {[%clk 0:00:46]} 33. h5 {[%clk 0:01:46]}  a4 {[%clk 0:00:39]} 34. hxg6 {[%clk 0:01:46]}  fxg6 {[%clk 0:00:40]} 35. Qe2 {[%clk 0:01:44]}  Qc6 {[%clk 0:00:35]} 36. Nf3 {[%clk 0:01:44]}  Nd7 {[%clk 0:00:33]} 37. Bb1 {[%clk 0:01:43]}  a3 {[%clk 0:00:29]} 38. bxa3 {[%clk 0:01:41]}  Qxc3 {[%clk 0:00:28]} 39. Ba2 {[%clk 0:01:27]}  Ndc5 {[%clk 0:00:23]} 40. Nh4 {[%clk 0:01:27]}  Qd4 {[%clk 0:00:10]} 41. Bd5 {[%clk 0:01:26]}  Ng5 {[%clk 0:00:06]} 42. Qxb5 {[%clk 0:01:25]}  Ngxe4 {[%clk 0:00:05]} 43. Bxe4 {[%clk 0:01:25]}  Nxe4 {[%clk 0:00:04]} 44. Qb7+ {[%clk 0:01:04]}  Kg8 {[%clk 0:00:04]} 45. Qb8+ {[%clk 0:01:04]}  Kg7 {[%clk 0:00:05]} 46. Qb7+ {[%clk 0:01:05]}  Kg8 {[%clk 0:00:05]} 47. Qb3+ {[%clk 0:01:05]}  Kg7 {[%clk 0:00:05]} 48. Qc2 {[%clk 0:01:06]}  h5 {[%clk 0:00:04]} 49. Nf3 {[%clk 0:01:06]}  Qd5 {[%clk 0:00:04]} 50. Qc7+ {[%clk 0:01:05]}  Kh6 {[%clk 0:00:05]} 51. Qe7 {[%clk 0:00:48]}  Nd6 {[%clk 0:00:03]} 52. Qf6 {[%clk 0:00:46]}  Kh7 {[%clk 0:00:01]} 53. Kh2 {[%clk 0:00:46]}  Nf5 {[%clk 0:00:01]} 54. Ng5+ {[%clk 0:00:45]}  Kh6 {[%clk 0:00:01]} 55. Nf7+ {[%clk 0:00:45]}  Kh7 {[%clk 0:00:01]} 56. Qh8# {[%clk 0:00:44]} 1-0


[Site "https://www.chess.com"]

[Event "Titled Tuesday Blitz April 12 Late 2022"]
[White "Quintiliano Pinto, Renato R."]
[Black "Esipenko, Andrey"]
[WhiteFideId "2117568"]
[BlackFideId "24175439"]
[WhiteElo "2439"]
[BlackElo "2617"]
[Result "0-1"]
[Round "03"]
[TimeControl "180+1"]
[Date "2022.04.12"]
[WhiteClock "0:00:05"]
[BlackClock "0:00:26"]

1. Nf3 {[%clk 0:02:57]}  d5 {[%clk 0:02:59]} 2. d4 {[%clk 0:02:56]}  Nf6 {[%clk 0:02:58]} 3. c4 {[%clk 0:02:57]}  e6 {[%clk 0:02:55]} 4. g3 {[%clk 0:02:57]}  Bb4+ {[%clk 0:02:53]} 5. Bd2 {[%clk 0:02:57]}  Be7 {[%clk 0:02:53]} 6. Bg2 {[%clk 0:02:57]}  O-O {[%clk 0:02:52]} 7. O-O {[%clk 0:02:57]}  c6 {[%clk 0:02:53]} 8. Qc2 {[%clk 0:02:57]}  b6 {[%clk 0:02:52]} 9. b3 {[%clk 0:02:56]}  a5 {[%clk 0:02:51]} 10. Rd1 {[%clk 0:02:48]}  Nbd7 {[%clk 0:02:44]} 11. Bc3 {[%clk 0:02:47]}  b5 {[%clk 0:02:41]} 12. Nbd2 {[%clk 0:02:46]}  Ba6 {[%clk 0:02:41]} 13. e4 {[%clk 0:02:26]}  dxc4 {[%clk 0:02:28]} 14. bxc4 {[%clk 0:02:27]}  bxc4 {[%clk 0:02:29]} 15. Rab1 {[%clk 0:02:19]}  h6 {[%clk 0:02:24]} 16. Ba1 {[%clk 0:02:07]}  Nb6 {[%clk 0:02:22]} 17. Ne5 {[%clk 0:02:05]}  Qc7 {[%clk 0:02:19]} 18. Ndxc4 {[%clk 0:01:56]}  Nxc4 {[%clk 0:02:20]} 19. Nxc4 {[%clk 0:01:57]}  Rfd8 {[%clk 0:02:20]} 20. Ne3 {[%clk 0:01:49]}  Rac8 {[%clk 0:02:18]} 21. Rdc1 {[%clk 0:01:32]}  Qa7 {[%clk 0:02:07]} 22. Bc3 {[%clk 0:01:28]}  Rxd4 {[%clk 0:01:53]} 23. Bxd4 {[%clk 0:01:23]}  Qxd4 {[%clk 0:01:54]} 24. Rd1 {[%clk 0:01:20]}  Qa7 {[%clk 0:01:53]} 25. Bf1 {[%clk 0:01:14]}  Bxf1 {[%clk 0:01:47]} 26. Rxf1 {[%clk 0:01:15]}  Bc5 {[%clk 0:01:41]} 27. Nc4 {[%clk 0:01:13]}  a4 {[%clk 0:01:23]} 28. Kg2 {[%clk 0:01:12]}  h5 {[%clk 0:01:14]} 29. Rfd1 {[%clk 0:01:08]}  h4 {[%clk 0:01:12]} 30. Rd2 {[%clk 0:01:01]}  Bd4 {[%clk 0:00:38]} 31. Nd6 {[%clk 0:00:45]}  Rc7 {[%clk 0:00:38]} 32. Qc4 {[%clk 0:00:15]}  c5 {[%clk 0:00:26]} 33. Nb5 {[%clk 0:00:14]}  Qb7 {[%clk 0:00:27]} 34. Rxd4 {[%clk 0:00:10]}  cxd4 {[%clk 0:00:26]} 35. Qxc7 {[%clk 0:00:10]}  Qxe4+ {[%clk 0:00:27]} 36. Kg1 {[%clk 0:00:05]}  Qxb1+ {[%clk 0:00:26]} 0-1


[Site "https://www.chess.com"]

[Event "Titled Tuesday Blitz April 12 Late 2022"]
[White "Rangel, Daniel"]
[Black "Nazaretyan, Tigran"]
[WhiteFideId "2124475"]
[BlackFideId "24162345"]
[WhiteElo "2426"]
[BlackElo "2623"]
[Result "1-0"]
[Round "03"]
[TimeControl "180+1"]
[Date "2022.04.13"]
[WhiteClock "0:00:10"]
[BlackClock "0:00:13"]

1. c4 {[%clk 0:03:00]}  Nf6 {[%clk 0:02:56]} 2. g3 {[%clk 0:03:00]}  c6 {[%clk 0:02:52]} 3. Bg2 {[%clk 0:03:00]}  d5 {[%clk 0:02:53]} 4. cxd5 {[%clk 0:03:01]}  cxd5 {[%clk 0:02:53]} 5. Nf3 {[%clk 0:03:01]}  Nc6 {[%clk 0:02:52]} 6. d4 {[%clk 0:03:01]}  Bf5 {[%clk 0:02:48]} 7. O-O {[%clk 0:03:01]}  e6 {[%clk 0:02:48]} 8. Bf4 {[%clk 0:02:58]}  Bd6 {[%clk 0:02:40]} 9. Bxd6 {[%clk 0:02:51]}  Qxd6 {[%clk 0:02:40]} 10. Nc3 {[%clk 0:02:52]}  O-O {[%clk 0:02:35]} 11. Qa4 {[%clk 0:02:43]}  h6 {[%clk 0:02:33]} 12. Rfc1 {[%clk 0:02:40]}  Rfc8 {[%clk 0:02:32]} 13. e3 {[%clk 0:02:40]}  a6 {[%clk 0:02:31]} 14. Qd1 {[%clk 0:02:29]}  b5 {[%clk 0:02:29]} 15. Ne1 {[%clk 0:02:22]}  Na5 {[%clk 0:02:27]} 16. Nd3 {[%clk 0:02:18]}  Bxd3 {[%clk 0:02:25]} 17. Qxd3 {[%clk 0:02:18]}  Nc4 {[%clk 0:02:14]} 18. b3 {[%clk 0:02:16]}  Na3 {[%clk 0:02:13]} 19. e4 {[%clk 0:02:08]}  dxe4 {[%clk 0:01:46]} 20. Nxe4 {[%clk 0:02:07]}  Nxe4 {[%clk 0:01:45]} 21. Bxe4 {[%clk 0:02:07]}  Rab8 {[%clk 0:01:44]} 22. h4 {[%clk 0:01:53]}  Rd8 {[%clk 0:01:37]} 23. Rd1 {[%clk 0:01:31]}  Rbc8 {[%clk 0:01:35]} 24. Rac1 {[%clk 0:01:26]}  f5 {[%clk 0:01:33]} 25. Bb7 {[%clk 0:01:15]}  Rxc1 {[%clk 0:01:26]} 26. Rxc1 {[%clk 0:01:12]}  Rd7 {[%clk 0:01:25]} 27. Rc6 {[%clk 0:00:55]}  Qb4 {[%clk 0:01:14]} 28. Bc8 {[%clk 0:00:51]}  Qxd4 {[%clk 0:00:39]} 29. Qxd4 {[%clk 0:00:46]}  Rxd4 {[%clk 0:00:39]} 30. Bxe6+ {[%clk 0:00:47]}  Kf8 {[%clk 0:00:39]} 31. Rxa6 {[%clk 0:00:45]}  b4 {[%clk 0:00:38]} 32. Bxf5 {[%clk 0:00:42]}  Rd2 {[%clk 0:00:37]} 33. Rb6 {[%clk 0:00:41]}  Nc2 {[%clk 0:00:35]} 34. Rb7 {[%clk 0:00:39]}  Nd4 {[%clk 0:00:32]} 35. Bg6 {[%clk 0:00:37]}  Nf3+ {[%clk 0:00:31]} 36. Kg2 {[%clk 0:00:37]}  Ne5 {[%clk 0:00:28]} 37. h5 {[%clk 0:00:35]}  Nxg6 {[%clk 0:00:26]} 38. hxg6 {[%clk 0:00:35]}  Rxa2 {[%clk 0:00:27]} 39. Rf7+ {[%clk 0:00:34]}  Kg8 {[%clk 0:00:24]} 40. Rb7 {[%clk 0:00:34]}  Kf8 {[%clk 0:00:23]} 41. Rxb4 {[%clk 0:00:34]}  Ra6 {[%clk 0:00:23]} 42. Rf4+ {[%clk 0:00:32]}  Ke8 {[%clk 0:00:21]} 43. Rg4 {[%clk 0:00:31]}  Rb6 {[%clk 0:00:20]} 44. b4 {[%clk 0:00:31]}  Ke7 {[%clk 0:00:21]} 45. Kf3 {[%clk 0:00:25]}  Kf6 {[%clk 0:00:21]} 46. Ke3 {[%clk 0:00:24]}  Kf5 {[%clk 0:00:20]} 47. Rf4+ {[%clk 0:00:20]}  Kxg6 {[%clk 0:00:20]} 48. Kd3 {[%clk 0:00:20]}  Kh7 {[%clk 0:00:16]} 49. Kc4 {[%clk 0:00:20]}  g5 {[%clk 0:00:17]} 50. Rd4 {[%clk 0:00:19]}  h5 {[%clk 0:00:16]} 51. b5 {[%clk 0:00:19]}  Rh6 {[%clk 0:00:16]} 52. Kc5 {[%clk 0:00:18]}  h4 {[%clk 0:00:16]} 53. gxh4 {[%clk 0:00:18]}  gxh4 {[%clk 0:00:16]} 54. b6 {[%clk 0:00:18]}  h3 {[%clk 0:00:17]} 55. b7 {[%clk 0:00:16]}  Rh5+ {[%clk 0:00:16]} 56. Kb6 {[%clk 0:00:13]}  h2 {[%clk 0:00:13]} 57. b8=Q {[%clk 0:00:10]}  h1=Q {[%clk 0:00:13]} 58. Rd7+ {[%clk 0:00:11]}  Kg6 {[%clk 0:00:13]} 59. Qd6+ {[%clk 0:00:10]}  Kf5 {[%clk 0:00:13]} 60. Rf7+ {[%clk 0:00:10]}  Kg4 {[%clk 0:00:13]} 61. Qf4+ {[%clk 0:00:10]}  Kh3 {[%clk 0:00:13]} 62. Qg3# {[%clk 0:00:10]} 1-0


[Site "https://www.chess.com"]

[Event "Titled Tuesday Blitz April 12 Late 2022"]
[White "Rego, Vinicius V. de Almeida"]
[Black "Kavyev, Ruslan"]
[WhiteFideId "2106485"]
[BlackFideId "34110981"]
[WhiteElo "2345"]
[BlackElo "2182"]
[Result "1/2-1/2"]
[Round "03"]
[TimeControl "180+1"]
[Date "2022.04.13"]
[WhiteClock "0:00:21"]
[BlackClock "0:00:06"]

1. Nf3 {[%clk 0:03:00]}  d5 {[%clk 0:02:49]} 2. c4 {[%clk 0:03:01]}  d4 {[%clk 0:02:48]} 3. g3 {[%clk 0:03:02]}  Nc6 {[%clk 0:02:48]} 4. e3 {[%clk 0:03:02]}  e5 {[%clk 0:02:48]} 5. d3 {[%clk 0:03:02]}  Be7 {[%clk 0:02:37]} 6. exd4 {[%clk 0:03:01]}  exd4 {[%clk 0:02:37]} 7. Bg2 {[%clk 0:03:01]}  Nf6 {[%clk 0:02:32]} 8. O-O {[%clk 0:03:02]}  O-O {[%clk 0:02:29]} 9. Re1 {[%clk 0:03:02]}  Nd7 {[%clk 0:02:27]} 10. a3 {[%clk 0:03:02]}  a5 {[%clk 0:02:21]} 11. Nbd2 {[%clk 0:03:01]}  Nc5 {[%clk 0:01:43]} 12. Ne4 {[%clk 0:03:01]}  Ne6 {[%clk 0:01:40]} 13. h4 {[%clk 0:02:52]}  h6 {[%clk 0:01:37]} 14. b3 {[%clk 0:02:49]}  Kh8 {[%clk 0:01:13]} 15. Bb2 {[%clk 0:02:42]}  Ra6 {[%clk 0:01:08]} 16. Ned2 {[%clk 0:02:36]}  Nc5 {[%clk 0:01:02]} 17. Ne4 {[%clk 0:02:33]}  Ne6 {[%clk 0:00:57]} 18. Ned2 {[%clk 0:02:32]}  Rb6 {[%clk 0:00:43]} 19. Ne5 {[%clk 0:02:30]}  Nc5 {[%clk 0:00:42]} 20. Nxc6 {[%clk 0:02:28]}  bxc6 {[%clk 0:00:41]} 21. Qc2 {[%clk 0:02:23]}  Bf5 {[%clk 0:00:40]} 22. Bf1 {[%clk 0:02:16]}  Bf6 {[%clk 0:00:38]} 23. Rab1 {[%clk 0:02:09]}  Qd7 {[%clk 0:00:27]} 24. Ba1 {[%clk 0:02:08]}  Rfb8 {[%clk 0:00:26]} 25. Rb2 {[%clk 0:01:54]}  Bg6 {[%clk 0:00:16]} 26. Reb1 {[%clk 0:01:54]}  Qf5 {[%clk 0:00:16]} 27. b4 {[%clk 0:01:42]}  axb4 {[%clk 0:00:17]} 28. axb4 {[%clk 0:01:42]}  Nxd3 {[%clk 0:00:18]} 29. Bxd3 {[%clk 0:01:27]}  Qxd3 {[%clk 0:00:19]} 30. Qxd3 {[%clk 0:01:28]}  Bxd3 {[%clk 0:00:19]} 31. Re1 {[%clk 0:01:28]}  Rxb4 {[%clk 0:00:20]} 32. Rxb4 {[%clk 0:01:28]}  Rxb4 {[%clk 0:00:21]} 33. c5 {[%clk 0:01:13]}  Rb5 {[%clk 0:00:15]} 34. Rc1 {[%clk 0:01:12]}  g5 {[%clk 0:00:09]} 35. Nf3 {[%clk 0:01:12]}  Be4 {[%clk 0:00:05]} 36. Nxd4 {[%clk 0:01:11]}  Ra5 {[%clk 0:00:05]} 37. Bc3 {[%clk 0:01:10]}  Ra3 {[%clk 0:00:04]} 38. Bb2 {[%clk 0:01:08]}  Ra2 {[%clk 0:00:04]} 39. Bc3 {[%clk 0:01:06]}  gxh4 {[%clk 0:00:05]} 40. gxh4 {[%clk 0:01:06]}  Kh7 {[%clk 0:00:05]} 41. h5 {[%clk 0:01:04]}  Bd5 {[%clk 0:00:04]} 42. Nf5 {[%clk 0:01:03]}  Bg5 {[%clk 0:00:03]} 43. Re1 {[%clk 0:01:01]}  Rc2 {[%clk 0:00:03]} 44. Bd4 {[%clk 0:01:01]}  Rc4 {[%clk 0:00:04]} 45. Re8 {[%clk 0:01:00]}  Rxd4 {[%clk 0:00:02]} 46. Nxd4 {[%clk 0:01:01]}  Bf6 {[%clk 0:00:02]} 47. Nf5 {[%clk 0:01:01]}  Bf3 {[%clk 0:00:02]} 48. Ng3 {[%clk 0:00:59]}  Bd4 {[%clk 0:00:01]} 49. Rc8 {[%clk 0:00:49]}  Bxc5 {[%clk 0:00:01]} 50. Rxc7 {[%clk 0:00:50]}  Kg8 {[%clk 0:00:01]} 51. Nf5 {[%clk 0:00:49]}  Bf8 {[%clk 0:00:01]} 52. Rc8 {[%clk 0:00:43]}  Bxh5 {[%clk 0:00:01]} 53. Nxh6+ {[%clk 0:00:43]}  Kg7 {[%clk 0:00:02]} 54. Nf5+ {[%clk 0:00:44]}  Kg8 {[%clk 0:00:03]} 55. Ne7+ {[%clk 0:00:43]}  Kg7 {[%clk 0:00:03]} 56. Nxc6 {[%clk 0:00:44]}  Bd6 {[%clk 0:00:04]} 57. Nd4 {[%clk 0:00:42]}  Bg6 {[%clk 0:00:04]} 58. Rd8 {[%clk 0:00:41]}  Bc5 {[%clk 0:00:05]} 59. Nf3 {[%clk 0:00:40]}  Be7 {[%clk 0:00:05]} 60. Rd7 {[%clk 0:00:40]}  Bf6 {[%clk 0:00:06]} 61. Kg2 {[%clk 0:00:39]}  Bf5 {[%clk 0:00:06]} 62. Ra7 {[%clk 0:00:36]}  Be6 {[%clk 0:00:06]} 63. Kg3 {[%clk 0:00:36]}  Kg6 {[%clk 0:00:06]} 64. Ra5 {[%clk 0:00:35]}  Bd8 {[%clk 0:00:06]} 65. Rb5 {[%clk 0:00:34]}  Bc7+ {[%clk 0:00:06]} 66. Kg2 {[%clk 0:00:34]}  Kg7 {[%clk 0:00:06]} 67. Ng5 {[%clk 0:00:34]}  Bd7 {[%clk 0:00:04]} 68. Rc5 {[%clk 0:00:31]}  Bd6 {[%clk 0:00:05]} 69. Rc1 {[%clk 0:00:31]}  Be7 {[%clk 0:00:05]} 70. Nf3 {[%clk 0:00:28]}  Be6 {[%clk 0:00:05]} 71. Kg3 {[%clk 0:00:27]}  Bf6 {[%clk 0:00:06]} 72. Re1 {[%clk 0:00:27]}  Bd5 {[%clk 0:00:06]} 73. Ne5 {[%clk 0:00:26]}  Be6 {[%clk 0:00:06]} 74. f4 {[%clk 0:00:25]}  Be7 {[%clk 0:00:05]} 75. Nf3 {[%clk 0:00:25]}  Bb4 {[%clk 0:00:05]} 76. Rg1 {[%clk 0:00:25]}  Bd6 {[%clk 0:00:05]} 77. Kf2+ {[%clk 0:00:24]}  Kf6 {[%clk 0:00:06]} 78. Ke3 {[%clk 0:00:25]}  Kf5 {[%clk 0:00:06]} 79. Nd4+ {[%clk 0:00:25]}  Kf6 {[%clk 0:00:06]} 80. Nxe6 {[%clk 0:00:25]}  fxe6 {[%clk 0:00:07]} 81. Ke4 {[%clk 0:00:25]}  Bc7 {[%clk 0:00:07]} 82. Rh1 {[%clk 0:00:24]}  Bd6 {[%clk 0:00:07]} 83. Rh6+ {[%clk 0:00:24]}  Kf7 {[%clk 0:00:08]} 84. Kf3 {[%clk 0:00:21]}  Bc7 {[%clk 0:00:08]} 85. Kg4 {[%clk 0:00:21]}  Bd6 {[%clk 0:00:08]} 86. f5 {[%clk 0:00:21]}  exf5+ {[%clk 0:00:07]} 87. Kxf5 {[%clk 0:00:22]}  Bb4 {[%clk 0:00:06]} 88. Rh7+ {[%clk 0:00:22]}  Ke8 {[%clk 0:00:07]} 89. Ke6 {[%clk 0:00:22]}  Kd8 {[%clk 0:00:07]} 90. Rb7 {[%clk 0:00:21]}  Ba3 {[%clk 0:00:06]} 91. Ra7 {[%clk 0:00:20]}  Bb4 {[%clk 0:00:06]} 92. Rh7 {[%clk 0:00:21]}  Kc8 {[%clk 0:00:06]} 93. Kd5 {[%clk 0:00:21]}  Kb8 {[%clk 0:00:06]} 94. Kc6 {[%clk 0:00:22]}  Be1 {[%clk 0:00:05]} 95. Re7 {[%clk 0:00:22]}  Bg3 {[%clk 0:00:05]} 96. Kb6 {[%clk 0:00:21]}  Ka8 {[%clk 0:00:05]} 97. Re8+ {[%clk 0:00:21]}  Bb8 {[%clk 0:00:06]} 98. Ka6 {[%clk 0:00:21]} 1/2-1/2


[Site "https://www.chess.com"]